Cogmind - Beta 14 @@@ ROGUE MODE // 2024.12.13 @ 17:54:49 Player: mehbruh Result: Destroyed by G-34 Mercenary with Small Laser Performance ------------- Evolutions (0) 0 Regions Visited (1) 200 Robots Destroyed (10) 50 Value Destroyed (137) 137 Prototype IDs (0) 0 Alien Tech Used (0) 0 Bonus (0) 0 TOTAL SCORE: 387 Bonus ------- None Cogmind --------- Core Integrity 0/250 Matter 260/300 Energy 100/100 System Corruption 30% Temperature Cool (6) Movement Core (1400) Ox27 Location -10/Materials Parts ------- > --- POWER (1) -------- (None) > --- PROPULSION (2) --- Compact Wheel (fused) > --- UTILITY (2) ------ Huge Storage Unit > --- WEAPON (2) ------- Light Assault Rifle Light Assault Rifle > --- INVENTORY (25) --- Ion Engine Light Treads Light Treads Assault Rifle Assault Rifle Light Assault Rifle Grenade Launcher Peak State ------------ > --- POWER ------------ Light Ion Engine > --- PROPULSION ------- Aluminum Leg Aluminum Leg > --- UTILITY ---------- Medium Storage Unit Seismic Detector > --- WEAPON ----------- Assault Rifle Light Assault Rifle > --- INVENTORY -------- Ion Engine Light Treads Light Treads Aluminum Leg Compact Wheel Compact Wheel Huge Storage Unit Assault Rifle Light Assault Rifle Grenade Launcher [Rating: 8] Favorites ----------- Power Light Ion Engine Engine Light Ion Engine Propulsion Compact Wheel Leg Aluminum Leg Wheel Compact Wheel Utility Seismic Detector Device Seismic Detector Storage Huge Storage Unit Weapon Light Assault Rifle Ballistic Gun Light Assault Rifle Launcher Grenade Launcher Build | -11 -10 ------- Run | Yrd Mat Slots Evolved . | . . Power . | . . Propulsion . | . . Utility . | . . Weapon . | . . Parts Attached 15 | 8 7 Power 1 | 1 . Engine 1 | 1 . Core . | . . Reactor . | . . Propulsion 6 | 3 3 Treads . | . . Leg 3 | 2 1 Wheel 3 | 1 2 Hover . | . . Flight . | . . Utility 4 | 2 2 Device 1 | 1 . Storage 3 | 1 2 Processor . | . . Hackware . | . . Protection . | . . Artifact . | . . Weapon 4 | 2 2 Energy Gun . | . . Energy Cannon . | . . Ballistic Gun 3 | 2 1 Ballistic Cannon . | . . Launcher 1 | . 1 Special Weapon . | . . Impact Weapon . | . . Slashing Weapon . | . . Piercing Weapon . | . . Special Melee Weapon . | . . Unidentified Prototypes . | . . Parts Lost 3 | . 3 Power 1 | . 1 Propulsion 1 | . 1 Utility 1 | . 1 Weapon . | . . Highest Loss Streak 2 | . 2 To Critical Strikes . | . . Average Slot Usage (%) 93 | . 93 Engine 13 | . 13 Leg 12 | . 12 Wheel 14 | . 14 Device 8 | . 8 Storage 14 | . 14 Ballistic Gun 28 | . 28 Peak Build Rating 8 | 7 8 Average Rating 6 | 5 6 On Entrance 3 | . 7 Naked Turns . | . . Heaviest Build 86 | 12 86 Greatest Support 32 | 20 32 Greatest Overweight (x) 2 | . 2 Average Overweight (x) . | . . Largest Inventory Capacity 25 | 8 25 Average Capacity 17 | 7 17 Most Carried 10 | 7 10 Average Carried 7 | 4 7 Final Capacity 25 | 8 25 Final Carried 7 | 6 7 Class Distribution -------------------- 100% | Mutant Dominant Class ---------------- Mutant | -10/Materials Resources | -11 -10 ----------- Run | Yrd Mat Matter Collected 401 | 244 157 Remotely . | . . Salvage Created 214 | 27 187 Parts 23 | 4 19 Haulers Intercepted 1 | . 1 Recyclers Shooed . | . . Parts Field Recycled . | . . Retrieved Matter . | . . Parts Self-Destructed . | . . Prevented . | . . Kills | -11 -10 ------- Run | Yrd Mat Combat Hostiles Destroyed 8 | . 8 Guns 5 | . 5 AOE 3 | . 3 Classes Destroyed 4 | 1 3 Tunneler 1 | 1 . Hauler 1 | . 1 Swarmer 6 | . 6 Grunt 2 | . 2 Best Kill Streak 3 | 1 3 Combat Bots Only 3 | . 3 Max Kills in Single Turn 2 | 1 2 Gunslinging . | . . Exploded 2 | . 2 Melee . | . . Uniques/NPCs Destroyed . | . . Combat | -11 -10 -------- Run | Yrd Mat Hostile Shots Fired 43 | . 43 Missed 13 | . 13 Damage Taken 549 | . 549 Core 251 | . 251 Absorbed by Shields . | . . Core Remaining (%) 100 | 100 . Volleys Fired 19 | 2 17 Largest 2 | 2 2 Hottest 40 | 40 40 Shots Fired 36 | 4 32 Gun 34 | 4 30 Cannon . | . . Launcher 2 | . 2 Special . | . . Kinetic 34 | 4 30 Thermal . | . . Explosive 2 | . 2 Electromagnetic . | . . Robot Hit Streak 15 | 4 15 Robot Miss Streak 2 | . 2 Penetration Max . | . . Secondary Targets . | . . Shots Hit Robots 29 | 4 25 Core Hits 15 | 1 14 Critical Kills . | . . Critical Parts Destroyed . | . . Critical Strikes . | . . Melee Attacks . | . . Impact . | . . Slashing . | . . Piercing . | . . Sneak Attacks . | . . Combat Hostiles . | . . Follow-up Attacks . | . . Damage Inflicted 609 | 40 569 Guns 265 | 40 225 Cannons . | . . Explosions 203 | . 203 Melee . | . . Ramming 141 | . 141 Kinetic 265 | 40 225 Thermal . | . . Explosive 203 | . 203 Electromagnetic . | . . Impact . | . . Slashing . | . . Piercing . | . . Highest Corruption 30 | . 30 Average Corruption 12 | . 12 Corruption Purged . | . . Corruption Blocked . | . . Effects 21 | . 21 Message Errors 6 | . 6 Matter Fused 4 | . 4 Heat Flow Errors 2 | . 2 Energy Discharges 2 | . 2 Parts Fused 1 | . 1 Data Loss (minor) 1 | . 1 Data Loss (major) 3 | . 3 Alerts 2 | . 2 Overload Shots . | . . Overflow Damage . | . . Projectiles . | . . Explosions . | . . Melee . | . . Knockbacks . | . . Impact . | . . Kinetic . | . . Secondary . | . . Self-Inflicted Damage 137 | . 137 Shots . | . . Rammed . | . . Targets Rammed 2 | . 2 Kicked 2 | . 2 Crushed . | . . Highest Temperature 151 | . 151 Average Temperature 46 | . 46 Received Heat Transfer 114 | . 114 Siege Activations . | . . Robots Corrupted . | . . Combat Hostiles . | . . Parts Fried . | . . Impact Corruptions . | . . Robots Melted . | . . Combat Hostiles . | . . Parts Melted . | . . Heat Transferred . | . . Parts Sabotaged . | . . Parts Stolen . | . . Parts Stripped . | . . Power Chain Reactions . | . . Alert | -11 -10 ------- Run | Yrd Mat Peak Influence 162 | 5 162 Initial 3 | . 3 Average 27 | 2 29 Maximum Alert Level . | . . Low Security (%) 100 | 100 100 Level 1 . | . . Level 2 . | . . Level 3 . | . . Level 4 . | . . Level 5 . | . . High Security . | . . Max Security . | . . Squads Dispatched 2 | . 2 Investigation . | . . Extermination . | . . Reinforcement 2 | . 2 Assault . | . . Garrison . | . . Intercept . | . . Searches Triggered . | . . Construction Impeded . | . . Haulers Reinforced . | . . Active Scanning Responses . | . . Cargo Convoy Interrupts . | . . Stealth | -11 -10 --------- Run | Yrd Mat Distress Signals 1 | . 1 Communications Jammed . | . . Distress Signals . | . . Times Spotted 18 | . 18 Peak Tracking Total 4 | . 4 Tactical Retreats 2 | . 2 Traps | -11 -10 ------- Run | Yrd Mat Traps Triggered 1 | . 1 Indirectly . | . . Trap Hack Attempts . | . . Triggered . | . . Disarmed . | . . Reprogrammed . | . . Reused . | . . Traps Extracted . | . . Installed . | . . Triggered . | . . Machines | -11 -10 ---------- Run | Yrd Mat Machines Disabled . | . . Max in Single Turn . | . . Machines Repaired . | . . Machines Dismantled . | . . Machines Sabotaged . | . . Overloaded Fab Kills . | . . Hacking | -11 -10 --------- Run | Yrd Mat Machines Accessed 6 | . 6 Terminals 6 | . 6 Fabricators . | . . Repair Stations . | . . Recycling Units . | . . Scanalyzers . | . . Garrison Access . | . . Total Hacks 18 | . 18 Successful 9 | . 9 Failed 9 | . 9 Catastrophic 3 | . 3 Database Lockouts . | . . Manual 16 | . 16 Terminals 18 | . 18 Fabricators . | . . Repair Stations . | . . Recycling Units . | . . Scanalyzers . | . . Garrison Access . | . . Terminal Hacks 3 | . 3 Part Schematic 1 | . 1 Alert Level 1 | . 1 Unreport Threat 1 | . 1 Fabricator Hacks . | . . Repair Station Hacks . | . . Recycling Unit Hacks . | . . Scanalyzer . | . . Garrison Access Hacks . | . . Unauthorized Hacks 6 | . 6 Terminals 6 | . 6 Botnet 2 | . 2 Skim 4 | . 4 Fabricators . | . . Repair Stations . | . . Recycling Units . | . . Scanalyzers . | . . Garrison Access . | . . Data Cores Recovered . | . . Used . | . . Hacking Detections 6 | . 6 Full Trace Events . | . . Feedback Events . | . . Feedback Blocked . | . . Robot Schematics Acquired . | . . Robots Built . | . . Authchips . | . . Time . | . . Total Robot Build Rating . | . . Part Schematics Acquired 1 | . 1 Parts Built . | . . Authchips . | . . Time . | . . Total Part Build Rating . | . . Parts Repaired . | . . Time . | . . Parts Recycled . | . . Recycled Matter . | . . Retrieved Matter . | . . Retrieved Components . | . . Parts Scanalyzed . | . . Part Schematics Acquired . | . . Parts Damaged . | . . Bothacking | -11 -10 ------------ Run | Yrd Mat Used RIF Installer . | . . Robots Hacked . | . . Non-combat . | . . Combat . | . . Robot Hacks Applied . | . . Relay Couplers Released . | . . Fabnet Peak Effective % . | . . Robots Rewired . | . . Allies Hacked . | . . Hacks Repelled . | . . Allies | -11 -10 -------- Run | Yrd Mat Total Allies . | . . Largest Group . | . . Highest-Rated Group . | . . Highest-Rated Ally . | . . Total Orders . | . . Ally Attacks . | . . Total Damage . | . . Kills . | . . Allies Corrupted . | . . Allies Melted . | . . Intel | -11 -10 ------- Run | Yrd Mat Robot Analysis Total . | . . Derelict Logs Recovered . | . . Drone Launches . | . . Drone Recoveries . | . . Exploration | -11 -10 ------------- Run | Yrd Mat Turns Passed 1187 | 90 1097 Spaces Moved 528 | 57 471 Core 4 | 4 . Treads . | . . Legs 415 | 46 369 Wheels 109 | 7 102 Hover . | . . Flight . | . . Fastest Speed 50 | 50 120 Average Speed 121 | 112 122 Slowest Speed 130 | 120 130 Overloaded Moves . | . . Propulsion Burnouts . | . . Robots Hopped . | . . Cave-ins Triggered . | . . Exploration Rate (%) 47 | 3 92 Regions Visited 1 Branch Regions . Pre-discovered Areas . | . . Known Exits Taken . | . . Unknown Exits Taken 1 | 1 . Scrap Searched . | . . Spaces Dug . | . . Terrain Destroyed 19 | . 19 Melee . | . . Projectile . | . . AOE 19 | . 19 Terrain Rammed 37 | . 37 Walls Destroyed . | . . Machines Disabled . | . . Actions | -11 -10 --------- Run | Yrd Mat Total 639 | 77 562 Wait 20 | 1 19 Move 527 | 56 471 Hop . | . . Pick Up 13 | 9 4 Fast Attach 4 | 4 . Attach 6 | 4 2 Detach 1 | 1 . Swap 5 | . 5 Drop 5 | . 5 Fire 19 | 2 17 Melee . | . . Ram 37 | . 37 Kick 2 | . 2 Crush . | . . Escape Stasis . | . . Rewire . | . . Trap . | . . Miscellaneous . | . . Route ------- -11/Scrapyard -10/Materials (discovered 4 exits: [*Mat x3] / [*Min]) History --------- Turn | Location | Event 18 | -11/Scrapyard | Discovered new exit (range 15) 91 | -11/Scrapyard | Entered Materials 237 | -10/Materials | Discovered new exit (range 13) 310 | -10/Materials | Build established: Mutant 442 | -10/Materials | Discovered new exit (range 8) 461 | -10/Materials | Discovered new exit (range 16) 622 | -10/Materials | Discovered new exit (range 6) 790 | -10/Materials | System corruption reached 10% 964 | -10/Materials | Core integrity fell below 50% 1179 | -10/Materials | Core integrity fell below 20% 1182 | -10/Materials | System corruption reached 30% 1188 | -10/Materials | Destroyed by G-34 Mercenary with Small Laser Last Messages --------------- 01106_ System corrupted: IFF burst signal emitted. 01108_ Slammed into Wall. 01108_ Destabilizing: Core damaged (-2). 01123_ System corrupted: Substantial component data lost. 01123_ Slammed into Wall. 01123_ Destabilizing: System corrupted (+1). 01137_ Slammed into Wall. 01137_ Destabilizing: Core damaged (-12). 01151_ LSNN6|DFR9V2L4RDYT9FIMN4H323W=23 01152_ Slammed into Wall. 01164_ Broken Com. Wheel destroyed. 01166_ Slammed into Wall. 01166_ Destabilizing: System corrupted (+2). 01166_ Destabilizing: Core damaged (-2). 01168_ Broken Lgt. Ion Engine destroyed. 01174_ System corrupted: Matter fused (-7). 01181_ Slammed into Wall. 01181_ Destabilizing: System corrupted (+1). Map ----- +----------------------------------------------------+ | | | | | | | | | | | | | | | | | | | | | | | | | | | | | | | | | ??????????????????????????????????? | | ??????????????????????????????????? | | ??????????????????????????????????? | | ??????????????????????????????????? | | ??????????????????????????????????? | | ?????????????????????????????###### | | ?????????????????????????????# # | | ???????????????????########### # | | ???????????????????# !!! # # # | | ???????????????????# !!! @# # # | | ######?????????????# !!! g + # | | """ #?????????????# # # # | | """ #?????????????# # # # | | """ #?????????????# ! # # # | | #?????????????######## # # | | #??????????#####?????# ###### | | ############ = #?????# #????? | | ####### ## #????## ##???? | | ??????# ""## ###### #???? | | ??????# Y"## !# #???? | | ??????# ""##! # T #???? | | ??????# ## # ### #???? | | ####### """ ## # ####+###???? | | + ! """ ###+## # #? | | ### ### """ + # #? | | ??# #?# # # """"" #? | | "?# #?#######+## ###### """"" #? | | Y"# #??# #????# """"" #? | | ""# #??# #????###########? | | # #??# #???????????????? | | # #??# #???????????????? | | # #### #???????????????? | | # #???????????????? | | ### #???####????????? | +----------------------------------------------------+ Best States ------------- Heat Dissipation 25 Energy Generation 10 Energy Capacity 125 Matter Stores 300 Matter Capacity 300 Sight Range 16 Terrain Scan Density 10 Evasion (%) 55 Item Schematics ----------------- Huge Storage Unit | -10/Materials | Hacked Robot Schematics ------------------ None Fabricated ------------ Nothing Alien Tech Used ----------------- None Achievements -------------- None Challenges ------------ None Game ------ Seed DisruptionGravitonDriver Manual? 0 Play Time 00:07:55 Cumulative 67.7 hours Start 2024.12.13 @ 17:48:48 End 2024.12.13 @ 17:54:49 Sessions 1 Manual Loads 0 Difficulty Rogue Special Mode None Game No. 67 Rogue 67 Adventurer 0 Explorer 0 Win Type - Total 2 Types 2/0/0/0/0/0/0/0/0 Lore% 33 Gallery% 44 Achievement% 44 Wizard Run 0 Options --------- Layout 1 ASCII 0 Keyboard 0 Movement Arrows Keybinds 0 Fullscreen 1 Font 24/Smallcaps Map View 50x35 Zoom Use 0% Tactical HUD 1 Map Filters NONE Filters NONE Steam 1 RUN: d5151d8c-2913-403a-acbf-22de00e7ac54